fUST/lending_fUST_20240728
["ID","MTS","AMOUNT","RATE_DAILY","PERIOD"]
[333467857,1722162643215,-24762.7242494,0.00013578,2]
[333467931,1722162646114,-1807.93112494,0.00013578,2]
[333467933,1722162646126,-3509.545865,0.00013578,2]
[333467965,1722162818782,10000.0,0.0001,10]
[333467966,1722162827394,10000.0,0.0001,10]
[333467967,1722162847061,8185.54,0.0001,10]
[333467968,1722162878770,3131.48,0.0001,10]
[333467977,1722163750179,-579.22494295,9.899e-05,2]
[333467978,1722163750200,-413.63079778,9.999e-05,2]
[333467979,1722163750220,-165.59414517,9.999e-05,2]
[333467980,1722163750241,-480.28219326,9.999e-05,2]
[333467981,1722163750262,-165.517897,0.00011432,2]
[333467982,1722163750284,-300.0,0.00011461,2]
[333467983,1722163750308,-24900.0,0.00011462,2]
[333467984,1722163750335,-165.517897,0.00011631,2]
[333467985,1722163750360,-165.517897,0.00011829,2]
[333467986,1722163750380,-166.666666,0.00011862,2]
[333467987,1722163750403,-165.517897,0.00012028,2]
[333467988,1722163750424,-166.666666,0.00012185,2]
[333467989,1722163750446,-166.666666,0.00012508,2]
[333467990,1722163755096,-154.66746495,0.00012608,2]
[333467991,1722163755815,90.06705783,9.9e-05,2]
[333467995,1722163761107,-150.82808615,9.9e-05,2]
[333467996,1722163806254,149.17191385,0.00012121,2]
[333467997,1722163806277,331.11027941,0.00012121,2]
[333468128,1722163838208,-166.666666,0.00012832,2]
[333468129,1722163838218,-166.666666,0.00013155,2]
[333468130,1722163838228,-1893.50654936,0.00013226,2]
[333468131,1722163838238,-5308.80312147,0.00013248,2]
[333468132,1722163838248,-367.60913684,0.00013326,2]
[333468133,1722163838258,-170.47955,0.00013425,2]
[333468134,1722163838267,-300.0,0.00013477,2]
[333468135,1722163838277,-1424.66133049,0.00013478,2]
[333468136,1722163838287,-166.666666,0.00013478,2]
[333468137,1722163838296,-1424.66133047,0.00013505,2]
[333468138,1722163838306,-1424.66133047,0.00013532,2]
[333468139,1722163838317,-1424.66133047,0.00013559,2]
[333468140,1722163838328,-2000.0,0.00013566,2]
[333468141,1722163838339,-6319.9431316,0.00013569,2]
[333468160,1722163840566,-1694.98,0.00013569,2]
[333468185,1722163844957,-2908.616748,0.00013569,2]
[333468186,1722163844967,-4673.31219973,0.00013578,2]
[333468187,1722163844977,-65301.1500651,0.00013578,2]
[333468188,1722163844987,-1424.66133047,0.00013586,2]
[333468189,1722163844997,-51903.14930636,0.00013588,2]
[333468190,1722163845006,-1895.74426503,0.00013598,2]
[333468191,1722163845016,-150.112233,0.000136,2]
[333468192,1722163845025,-6540.39167631,0.000136,2]
[333468193,1722163845034,-4657.27673119,0.000136,2]
[333468194,1722163845044,-294.0479944,0.000136,2]
[333468195,1722163845055,-153.0,0.000136,2]
[333468196,1722163845065,-153.0,0.000136,2]
[333468197,1722163845075,-150.112233,0.000136,2]
[333468198,1722163845087,-153.0,0.000136,2]
[333468199,1722163845096,-150.112233,0.000136,2]
[333468200,1722163845107,-150.112233,0.000136,2]
[333468201,1722163845117,-620.07629952,0.00013645,2]
[333468202,1722163845127,-322.22531119,0.00013655,2]
[333468203,1722163845138,-160.0,0.00013665,3]
[333468204,1722163845149,-5283.60646722,0.00013676,5]
[333468205,1722163845159,-65301.1500651,0.00013676,2]
[333468206,1722163845169,-34562.6046942,0.00013686,2]
[333468207,1722163845178,-156.02107,0.00013686,2]
[333468208,1722163845190,-156.02107,0.00013686,2]
[333468209,1722163845200,-151.0,0.00013686,2]
[333468210,1722163845209,-255.0,0.00013686,2]
[333468211,1722163845219,-151.670762,0.00013686,2]
[333468212,1722163845228,-151.0,0.00013686,2]
[333468213,1722163845238,-152.804505,0.00013688,2]
[333468214,1722163845247,-151.0,0.00013688,2]
[333468215,1722163845256,-151.0,0.00013688,2]
[333468216,1722163845267,-151.0,0.00013688,2]
[333468217,1722163845276,-151.0,0.00013688,2]
[333468218,1722163845286,-252.418494,0.00013688,2]
[333468219,1722163845296,-252.418494,0.00013688,2]
[333468220,1722163845306,-151.0,0.00013688,2]
[333468221,1722163845316,-151.0,0.00013688,2]
[333468222,1722163845326,-195903.450195,0.00013688,2]
[333468223,1722163845336,-13787.60239317,0.00013698,5]
[333468224,1722163845345,-1278.22,0.00013698,2]
[333468225,1722163845355,-1278.22,0.00013698,2]
[333468226,1722163845364,-1278.22,0.00013698,2]
[333468227,1722163845374,-1278.22,0.00013698,2]
[333468228,1722163845384,-1278.22,0.00013698,2]
[333468229,1722163845393,-1278.22,0.00013698,2]
[333468230,1722163845402,-1278.22,0.00013698,2]
[333468231,1722163845412,-1278.22,0.00013698,2]
[333468232,1722163845422,-1278.22,0.00013698,2]
[333468233,1722163845432,-1278.22,0.00013698,2]
[333468234,1722163845442,-1278.22,0.00013698,2]
[333468235,1722163845452,-1278.22,0.00013698,2]
[333468236,1722163845461,-1278.22,0.00013698,2]
[333468237,1722163845470,-1278.22,0.00013698,2]
[333468238,1722163845480,-1278.22,0.00013698,2]
[333468239,1722163845490,-1278.22,0.00013698,2]
[333468240,1722163845500,-1278.22,0.00013698,2]
[333468241,1722163845510,-1278.22,0.00013698,2]
[333468242,1722163845519,-1278.22,0.00013698,2]
[333468243,1722163845530,-1278.22,0.00013698,2]
[333468244,1722163845539,-1278.22,0.00013698,2]
[333468245,1722163845548,-1278.22,0.00013698,2]
[333468246,1722163845557,-1278.22,0.00013698,2]
[333468247,1722163845567,-1278.25843779,0.00013698,2]
[333468248,1722163845577,-500.0,0.00013698,2]
[333468249,1722163845587,-360.20624662,0.00013698,2]
[333468251,1722163845596,-503.57240317,0.00013698,2]
[333468252,1722163845606,-193.38715633,0.00013698,2]
[333468253,1722163845615,-552.33633417,0.00013698,2]
[333468254,1722163845625,-500.0,0.00013698,2]
[333468255,1722163845635,-505.30884357,0.00013698,2]
[333468256,1722163845646,-502.62470064,0.00013698,2]
[333468257,1722163845658,-618.21040356,0.00013698,2]
[333468258,1722163845667,-618.40257556,0.00013698,2]
[333468259,1722163845677,-504.14376989,0.00013698,2]
[333468260,1722163845687,-500.0,0.00013698,2]
[333468261,1722163845697,-500.0,0.00013698,2]
[333468262,1722163845707,-640.54637123,0.00013698,2]
[333468263,1722163845717,-500.0,0.00013698,2]
[333468264,1722163845727,-615.15208422,0.00013698,2]
[333468266,1722163845737,-503.636417,0.00013698,2]
[333468268,1722163845747,-500.0,0.00013698,2]
[333468270,1722163845756,-500.0,0.00013698,2]
[333468272,1722163845766,-500.0,0.00013698,2]
[333468274,1722163845775,-500.0,0.00013698,2]
[333468276,1722163845785,-500.0,0.00013698,2]
[333468278,1722163845795,-503.8757368,0.00013698,2]
[333468280,1722163845803,-500.0,0.00013698,2]
[333468282,1722163845813,-500.0,0.00013698,2]
[333468284,1722163845822,-511.75571667,0.00013698,2]
[333468286,1722163845832,-500.0,0.00013698,2]
[333468288,1722163845842,-500.0,0.00013698,2]
[333468292,1722163845853,-310.10141156,0.00013698,2]
[333468294,1722163845863,-500.0,0.00013698,2]
[333468296,1722163845873,-500.0,0.00013698,2]
[333468298,1722163845882,-500.0,0.00013698,2]
[333468299,1722163845891,-500.0,0.00013698,2]
[333468301,1722163845900,-500.0,0.00013698,2]
[333468303,1722163845910,-500.0,0.00013698,2]
[333468305,1722163845919,-500.0,0.00013698,2]
[333468307,1722163845928,-500.0,0.00013698,2]
[333468309,1722163845938,-507.41780141,0.00013698,2]
[333468310,1722163845947,-500.0,0.00013698,2]
[333468311,1722163845957,-500.0,0.00013698,2]
[333468313,1722163845966,-500.0,0.00013698,2]
[333468314,1722163845974,-500.0,0.00013698,2]
[333468315,1722163845984,-500.0,0.00013698,2]
[333468317,1722163845993,-500.0,0.00013698,2]
[333468319,1722163846004,-500.0,0.00013698,2]
[333468321,1722163846014,-500.0,0.00013698,2]
[333468323,1722163846023,-500.0,0.00013698,2]
[333468326,1722163846033,-500.0,0.00013698,2]
[333468327,1722163846043,-500.0,0.00013698,2]
[333468329,1722163846052,-500.0,0.00013698,2]
[333468331,1722163846062,-501.26094702,0.00013698,2]
[333468333,1722163846071,-500.0,0.00013698,2]
[333468335,1722163846081,-500.0,0.00013698,2]
[333468337,1722163846090,-500.0,0.00013698,2]
[333468339,1722163846100,-500.0,0.00013698,2]
[333468341,1722163846110,-277.20004014,0.00013698,2]
[333468343,1722163846120,-500.0,0.00013698,2]
[333468344,1722163846130,-504.26601546,0.00013698,2]
[333468345,1722163846141,-500.0,0.00013698,2]
[333468346,1722163846150,-500.0,0.00013698,2]
[333468347,1722163846159,-177.56488755,0.00013698,2]
[333468348,1722163846169,-500.0,0.00013698,2]
[333468349,1722163846178,-500.0,0.00013698,2]
[333468350,1722163846192,-500.0,0.00013698,2]
[333468351,1722163846201,-500.0,0.00013698,2]
[333468352,1722163846211,-500.0,0.00013698,2]
[333468353,1722163846221,-500.0,0.00013698,2]
[333468355,1722163846230,-151.0,0.00013698,2]
[333468357,1722163846241,-500.0,0.00013698,2]
[333468359,1722163846254,-639.08662249,0.00013698,2]
[333468360,1722163846263,-500.0,0.00013698,2]
[333468361,1722163846272,-500.0,0.00013698,2]
[333468362,1722163846283,-500.0,0.00013698,2]
[333468363,1722163846293,-500.0,0.00013698,2]
[333468364,1722163846303,-500.0,0.00013698,2]
[333468365,1722163846317,-500.0,0.00013698,2]
[333468366,1722163846327,-500.0,0.00013698,2]
[333468367,1722163846337,-402.99362953,0.00013698,2]
[333468368,1722163846439,-500.0,0.00013698,2]
[333468369,1722163846452,-500.0,0.00013698,2]
[333468370,1722163846463,-500.0,0.00013698,2]
[333468371,1722163846473,-500.0,0.00013698,2]
[333468372,1722163846482,-600.56,0.00013698,2]
[333468373,1722163846492,-500.0,0.00013698,2]
[333468374,1722163846504,-500.0,0.00013698,2]
[333468375,1722163846514,-500.0,0.00013698,2]
[333468376,1722163846527,-500.0,0.00013698,2]
[333468377,1722163846536,-500.0,0.00013698,2]
[333468378,1722163846546,-500.0,0.00013698,2]
[333468379,1722163846555,-500.0,0.00013698,2]
[333468380,1722163846565,-500.0,0.00013698,2]
[333468381,1722163846574,-500.0,0.00013698,2]
[333468382,1722163846583,-500.0,0.00013698,2]
[333468383,1722163846593,-500.0,0.00013698,2]
[333468384,1722163846602,-500.0,0.00013698,2]
[333468385,1722163846611,-151.0,0.00013698,2]
[333468386,1722163846621,-151.0,0.00013698,2]
[333468387,1722163846632,-500.0,0.00013698,2]
[333468388,1722163846641,-500.0,0.00013698,2]
[333468389,1722163846651,-500.0,0.00013698,2]
[333468390,1722163846661,-160.13921271,0.00013698,2]
[333468391,1722163846671,-500.0,0.00013698,2]
[333468392,1722163846680,-500.0,0.00013698,2]
[333468393,1722163846690,-600.0,0.00013698,2]
[333468394,1722163846700,-500.0,0.00013698,2]
[333468395,1722163846710,-151.0,0.00013698,2]
[333468396,1722163846720,-151.0,0.00013698,2]
[333468397,1722163846730,-151.0,0.00013698,2]
[333468398,1722163846739,-151.0,0.00013698,2]
[333468399,1722163846750,-500.0,0.00013698,2]
[333468400,1722163846760,-500.0,0.00013698,2]
[333468401,1722163846770,-611.93,0.00013698,2]
[333468402,1722163846779,-500.0,0.00013698,2]
[333468403,1722163846788,-500.0,0.00013698,2]
[333468404,1722163846798,-500.0,0.00013698,2]
[333468405,1722163846808,-500.0,0.00013698,2]
[333468406,1722163846817,-505.32615552,0.00013698,2]
[333468407,1722163846827,-500.0,0.00013698,2]
[333468408,1722163846836,-500.0,0.00013698,2]
[333468409,1722163846846,-500.52773329,0.00013698,2]
[333468410,1722163846855,-500.0,0.00013698,2]
[333468411,1722163846874,-508.02940413,0.00013698,2]
[333468412,1722163846889,-500.0,0.00013698,2]
[333468413,1722163846901,-547.91,0.00013698,2]
[333468414,1722163846912,-500.0,0.00013698,2]
[333468415,1722163846924,-500.0,0.00013698,2]
[333468416,1722163846936,-252.418494,0.00013698,2]
[333468417,1722163846947,-252.418494,0.00013698,2]
[333468418,1722163846959,-500.0,0.00013698,2]
[333468419,1722163846970,-252.418494,0.00013698,2]
[333468420,1722163846980,-252.418494,0.00013698,2]
[333468421,1722163846990,-500.0,0.00013698,2]
[333468422,1722163847000,-753.51,0.00013698,2]
[333468423,1722163847010,-500.0,0.00013698,2]
[333468424,1722163847020,-501.42153357,0.00013698,2]
[333468425,1722163847032,-500.0,0.00013698,2]
[333468426,1722163847042,-500.0,0.00013698,2]
[333468427,1722163847052,-500.0,0.00013698,2]
[333468428,1722163847063,-500.0,0.00013698,2]
[333468429,1722163847076,-500.0,0.00013698,2]
[333468430,1722163847086,-500.0,0.00013698,2]
[333468431,1722163847098,-500.0,0.00013698,2]
[333468432,1722163847110,-500.0,0.00013698,2]
[333468433,1722163847121,-500.0,0.00013698,2]
[333468434,1722163847134,-500.0,0.00013698,2]
[333468435,1722163847145,-235.84743861,0.00013698,2]
[333468436,1722163847154,-500.0,0.00013698,2]
[333468437,1722163847164,-500.0,0.00013698,2]
[333468438,1722163847175,-327.07219235,0.00013698,2]
[333468439,1722163847184,-620.74,0.00013698,2]
[333468440,1722163847199,-500.0,0.00013698,2]
[333468441,1722163847208,-500.0,0.00013698,2]
[333468442,1722163847218,-500.0,0.00013698,2]
[333468443,1722163847229,-500.0,0.00013698,2]
[333468444,1722163847239,-500.0,0.00013698,2]
[333468445,1722163847250,-500.0,0.00013698,2]
[333468446,1722163847262,-532.63,0.00013698,2]
[333468447,1722163847274,-500.0,0.00013698,2]
[333468448,1722163847284,-500.0,0.00013698,2]
[333468449,1722163847295,-500.0,0.00013698,2]
[333468450,1722163847305,-500.0,0.00013698,2]
[333468451,1722163847328,-241.47824687,0.00013698,2]
[333468452,1722163847339,-500.0,0.00013698,2]
[333468453,1722163847348,-151.0,0.00013698,2]
[333468454,1722163847359,-151.0,0.00013698,2]
[333468455,1722163847368,-500.0,0.00013698,2]
[333468456,1722163847378,-500.0,0.00013698,2]
[333468457,1722163847388,-500.0,0.00013698,2]
[333468458,1722163847398,-156.02107,0.00013698,2]
[333468459,1722163847408,-156.02107,0.00013698,2]
[333468460,1722163847418,-156.02107,0.00013698,2]
[333468461,1722163847429,-156.02107,0.00013698,2]
[333468462,1722163847439,-500.0,0.00013698,2]
[333468463,1722163847449,-500.0,0.00013698,2]
[333468464,1722163847459,-500.0,0.00013698,2]
[333468465,1722163847469,-500.0,0.00013698,2]
[333468466,1722163847479,-150.0,0.00013698,2]
[333468467,1722163847489,-500.90516344,0.00013698,2]
[333468468,1722163847499,-501.12036414,0.00013698,2]
[333468469,1722163847509,-164.79626247,0.00013698,2]
[333468470,1722163847519,-500.0,0.00013698,2]
[333468471,1722163847529,-500.0,0.00013698,2]
[333468472,1722163847539,-1021.45,0.00013698,2]
[333468473,1722163847549,-1128.37,0.00013698,2]
[333468474,1722163847559,-500.0,0.00013698,2]
[333468475,1722163847570,-554.22845092,0.00013698,2]
[333468476,1722163847579,-3552.09,0.00013698,2]
[333468477,1722163847588,-500.0,0.00013698,2]
[333468478,1722163847598,-512.76252795,0.00013698,2]
[333468479,1722163847608,-500.0,0.00013698,2]
[333468480,1722163847617,-151.0,0.00013698,2]
[333468481,1722163847626,-151.0,0.00013698,2]
[333468482,1722163847636,-1548.66,0.00013698,2]
[333468483,1722163847645,-500.0,0.00013698,2]
[333468484,1722163847655,-501.19685897,0.00013698,2]
[333468485,1722163847665,-500.0,0.00013698,2]
[333468486,1722163847675,-500.0,0.00013698,2]
[333468487,1722163847684,-502.40693595,0.00013698,2]
[333468488,1722163847694,-500.0,0.00013698,2]
[333468489,1722163847705,-500.0,0.00013698,2]
[333468490,1722163847717,-520.17811112,0.00013698,2]
[333468491,1722163847728,-789.63,0.00013698,2]
[333468492,1722163847737,-500.0,0.00013698,2]
[333468493,1722163847748,-500.0,0.00013698,2]
[333468494,1722163847760,-785.88,0.00013698,2]
[333468495,1722163847770,-500.0,0.00013698,2]
[333468496,1722163847779,-500.0,0.00013698,2]
[333468497,1722163847789,-500.0,0.00013698,2]
[333468498,1722163847799,-510.83937489,0.00013698,2]
[333468499,1722163847808,-500.0,0.00013698,2]
[333468500,1722163847818,-500.0,0.00013698,2]
[333468501,1722163847827,-500.0,0.00013698,2]
[333468502,1722163847836,-500.0,0.00013698,2]
[333468503,1722163847846,-500.0,0.00013698,2]
[333468504,1722163847857,-500.0,0.00013698,2]
[333468505,1722163847868,-500.0,0.00013698,2]
[333468506,1722163847878,-500.0,0.00013698,2]
[333468507,1722163847888,-323.86177293,0.00013698,2]
[333468508,1722163847898,-503.38367874,0.00013698,2]
[333468509,1722163847908,-362.45556053,0.00013698,2]
[333468510,1722163847918,-651.25,0.00013698,2]
[333468511,1722163847928,-500.0,0.00013698,2]
[333468512,1722163847938,-5505.58,0.00013698,2]
[333468513,1722163847948,-500.0,0.00013698,2]
[333468514,1722163847958,-505.26357198,0.00013698,2]
[333468515,1722163847970,-500.0,0.00013698,2]
[333468516,1722163847983,-1752.77,0.00013698,2]
[333468517,1722163847994,-500.0,0.00013698,2]
[333468518,1722163848005,-2455.15,0.00013698,2]
[333468519,1722163848015,-500.0,0.00013698,2]
[333468520,1722163848027,-500.0,0.00013698,2]
[333468521,1722163848037,-500.0,0.00013698,2]
[333468522,1722163848048,-1313.07,0.00013698,2]
[333468523,1722163848058,-969.2,0.00013698,2]
[333468524,1722163848068,-512.52479659,0.00013698,2]
[333468525,1722163848078,-500.0,0.00013698,2]
[333468526,1722163848087,-504.78651677,0.00013698,2]
[333468527,1722163848097,-505.15509623,0.00013698,2]
[333468528,1722163848107,-611.62,0.00013698,2]
[333468529,1722163848117,-505.20594028,0.00013698,2]
[333468530,1722163848127,-500.0,0.00013698,2]
[333468531,1722163848137,-505.73215604,0.00013698,2]
[333468532,1722163848148,-511.70907281,0.00013698,2]
[333468533,1722163848158,-812.78,0.00013698,2]
[333468534,1722163848168,-500.0,0.00013698,2]
[333468535,1722163848179,-500.0,0.00013698,2]
[333468536,1722163848193,-879.43,0.00013698,2]
[333468537,1722163848203,-502.98243977,0.00013698,2]
[333468538,1722163848215,-500.0,0.00013698,2]
[333468539,1722163848226,-500.0,0.00013698,2]
[333468540,1722163848237,-500.0,0.00013698,2]
[333468541,1722163848247,-422.7258482,0.00013698,2]
[333468542,1722163848258,-500.0,0.00013698,2]
[333468543,1722163848268,-717.17,0.00013698,2]
[333468544,1722163848278,-500.0,0.00013698,2]
[333468545,1722163848288,-500.0,0.00013698,2]
[333468546,1722163848299,-732.74,0.00013698,2]
[333468547,1722163848309,-151.0,0.00013698,2]
[333468548,1722163848318,-151.0,0.00013698,2]
[333468549,1722163848328,-500.0,0.00013698,2]
[333468550,1722163848337,-669.98,0.00013698,2]
[333468551,1722163848347,-500.0,0.00013698,2]
[333468552,1722163848357,-500.0,0.00013698,2]
[333468553,1722163848367,-503.36752975,0.00013698,2]
[333468554,1722163848376,-500.0,0.00013698,2]
[333468555,1722163848385,-500.0,0.00013698,2]
[333468556,1722163848395,-500.0,0.00013698,2]
[333468557,1722163848404,-3040.68,0.00013698,2]
[333468558,1722163848416,-500.0,0.00013698,2]
[333468559,1722163848428,-5566.36,0.00013698,2]
[333468560,1722163848440,-500.0,0.00013698,2]
[333468561,1722163848451,-788.86,0.00013698,2]
[333468562,1722163848462,-500.0,0.00013698,2]
[333468563,1722163848474,-500.0,0.00013698,2]
[333468564,1722163848483,-500.0,0.00013698,2]
[333468565,1722163848494,-743.54,0.00013698,2]
[333468566,1722163848504,-500.0,0.00013698,2]
[333468567,1722163848514,-1625.56,0.00013698,2]
[333468568,1722163848523,-500.0,0.00013698,2]
[333468569,1722163848533,-847.68,0.00013698,2]
[333468570,1722163848544,-811.85,0.00013698,2]
[333468571,1722163848555,-500.0,0.00013698,2]
[333468572,1722163848565,-500.0,0.00013698,2]
[333468573,1722163848575,-500.0,0.00013698,2]
[333468574,1722163848585,-589.46,0.00013698,2]
[333468575,1722163848595,-500.0,0.00013698,2]
[333468576,1722163848604,-500.0,0.00013698,2]
[333468577,1722163848613,-869.97,0.00013698,2]
[333468578,1722163848623,-500.0,0.00013698,2]
[333468579,1722163848634,-151.0,0.00013698,2]
[333468580,1722163848644,-411.37612143,0.00013698,2]
[333468581,1722163848655,-687.37,0.00013698,2]
[333468582,1722163848666,-500.0,0.00013698,2]
[333468583,1722163848675,-500.0,0.00013698,2]
[333468584,1722163848685,-500.0,0.00013698,2]
[333468585,1722163848694,-502.62402367,0.00013698,2]
[333468586,1722163848704,-500.0,0.00013698,2]
[333468587,1722163848714,-731.31,0.00013698,2]
[333468588,1722163848724,-698.33,0.00013698,2]
[333468589,1722163848736,-500.0,0.00013698,2]
[333468590,1722163848746,-500.0,0.00013698,2]
[333468591,1722163848759,-500.0,0.00013698,2]
[333468592,1722163848769,-558.49,0.00013698,2]
[333468593,1722163848779,-558.49,0.00013698,2]
[333468594,1722163848790,-558.49,0.00013698,2]
[333468595,1722163848800,-500.0,0.00013698,2]
[333468596,1722163848810,-558.49,0.00013698,2]
[333468597,1722163848820,-558.49,0.00013698,2]
[333468598,1722163848830,-558.49,0.00013698,2]
[333468599,1722163848840,-558.49,0.00013698,2]
[333468600,1722163848850,-558.49,0.00013698,2]
[333468601,1722163848859,-558.49,0.00013698,2]
[333468602,1722163848869,-558.49,0.00013698,2]
[333468603,1722163848879,-558.49,0.00013698,2]
[333468604,1722163848890,-558.49,0.00013698,2]
[333468605,1722163848900,-558.49,0.00013698,2]
[333468606,1722163848910,-558.49,0.00013698,2]
[333468607,1722163848920,-558.49,0.00013698,2]
[333468608,1722163848930,-558.49,0.00013698,2]
[333468609,1722163848941,-558.49,0.00013698,2]
[333468610,1722163848951,-558.49,0.00013698,2]
[333468611,1722163848961,-558.49,0.00013698,2]
[333468612,1722163848971,-1234.74,0.00013698,2]
[333468613,1722163848982,-725.94,0.00013698,2]
[333468614,1722163848992,-500.0,0.00013698,2]
[333468615,1722163849002,-513.43690189,0.00013698,2]
[333468616,1722163849011,-790.53,0.00013698,2]
[333468617,1722163849021,-210.73420583,0.00013698,2]
[333468618,1722163849032,-500.0,0.00013698,2]
[333468619,1722163849042,-500.0,0.00013698,2]
[333468620,1722163849225,-304.76571267,0.00013698,2]
[333468621,1722163849237,-301.63676647,0.00013698,2]
[333468622,1722163849247,-500.0,0.00013698,2]
[333468623,1722163849259,-408.11872993,0.00013698,2]
[333468624,1722163849270,-500.0,0.00013698,2]
[333468625,1722163849280,-500.0,0.00013698,2]
[333468626,1722163849289,-500.0,0.00013698,2]
[333468627,1722163849299,-500.0,0.00013698,2]
[333468628,1722163849309,-500.0,0.00013698,2]
[333468629,1722163849319,-261.94319664,0.00013698,2]
[333468630,1722163849329,-500.0,0.00013698,2]
[333468631,1722163849339,-500.0,0.00013698,2]
[333468632,1722163849348,-500.0,0.00013698,2]
[333468633,1722163849358,-500.0,0.00013698,2]
[333468634,1722163849369,-500.0,0.00013698,2]
[333468635,1722163849378,-500.0,0.00013698,2]
[333468636,1722163849388,-500.0,0.00013698,2]
[333468637,1722163849400,-500.0,0.00013698,2]
[333468638,1722163849412,-500.0,0.00013698,2]
[333468639,1722163849422,-500.0,0.00013698,2]
[333468640,1722163849432,-500.0,0.00013698,2]
[333468641,1722163849442,-500.0,0.00013698,2]
[333468642,1722163849452,-500.0,0.00013698,2]
[333468643,1722163849464,-500.0,0.00013698,2]
[333468644,1722163849473,-500.0,0.00013698,2]
[333468645,1722163849484,-2136.11,0.00013698,2]
[333468646,1722163849494,-300.0,0.00013698,2]
[333468647,1722163849506,-500.0,0.00013698,2]
[333468648,1722163849516,-450.0,0.00013698,2]
[333468649,1722163849527,-500.0,0.00013698,2]
[333468650,1722163849538,-500.0,0.00013698,2]
[333468651,1722163849550,-500.0,0.00013698,2]
[333468652,1722163849559,-500.0,0.00013698,2]
[333468653,1722163849568,-500.0,0.00013698,2]
[333468654,1722163849579,-236.96465992,0.00013698,2]
[333468655,1722163849589,-500.0,0.00013698,2]
[333468656,1722163849600,-500.0,0.00013698,2]
[333468657,1722163849611,-500.0,0.00013698,2]
[333468658,1722163849621,-500.0,0.00013698,2]
[333468659,1722163849632,-500.0,0.00013698,2]
[333468660,1722163849643,-500.0,0.00013698,2]
[333468661,1722163849654,-500.0,0.00013698,2]
[333468662,1722163849664,-605.3,0.00013698,2]
[333468663,1722163849674,-605.3,0.00013698,2]
[333468664,1722163849685,-605.3,0.00013698,2]
[333468665,1722163849695,-605.3,0.00013698,2]
[333468666,1722163849705,-605.3,0.00013698,2]
[333468667,1722163849719,-605.3,0.00013698,2]
[333468668,1722163849729,-605.3,0.00013698,2]
[333468669,1722163849739,-2057.81,0.00013698,2]
[333468670,1722163849750,-605.3,0.00013698,2]
[333468671,1722163849765,-605.3,0.00013698,2]
[333468672,1722163849775,-500.0,0.00013698,2]
[333468673,1722163849786,-605.3,0.00013698,2]
[333468674,1722163849797,-896.38,0.00013698,2]
[333468675,1722163849808,-605.3,0.00013698,2]
[333468676,1722163849817,-605.3,0.00013698,2]
[333468677,1722163849828,-605.3,0.00013698,2]
[333468678,1722163849838,-605.3,0.00013698,2]
[333468679,1722163849848,-605.3,0.00013698,2]
[333468680,1722163849859,-191.9901369,0.00013699,2]
[333468681,1722163849869,-181.4486332,0.00013699,2]
[333468682,1722163849881,-3000.0,0.00013699,2]
[333468683,1722163849891,-151.0,0.00013699,2]
[333468684,1722163849901,-151.0,0.00013699,2]
[333468685,1722163849911,-152.466772,0.00013699,2]
[333468686,1722163849922,-249.685121,0.00013699,2]